lending/lending_fUSD_20251107
["ID","MTS","AMOUNT","RATE_DAILY","PERIOD"]
[393332576,1762486251941,-1205.69,0.00027016,2]
[393332577,1762486251950,-152.0,0.00027042,9]
[393332578,1762486251959,-155.843168,0.00027123,7]
[393332579,1762486251968,-151.0,0.00027123,7]
[393332580,1762486251977,-151.0,0.00027123,7]
[393332581,1762486251986,-154.948938,0.00027123,7]
[393332582,1762486251995,-163.106762,0.00027123,7]
[393332583,1762486252004,-151.0,0.00027123,7]
[393332584,1762486252013,-3639.36,0.00027123,2]
[393332585,1762486252022,-265.7,0.00027123,4]
[393332586,1762486252031,-859.56389338,0.00027297,2]
[393332587,1762486252040,-150.0,0.00027369,2]
[393332588,1762486252049,-3424.0,0.0002738,2]
[393332589,1762486252058,-574.0,0.0002738,2]
[393332590,1762486252067,-2142.0,0.0002738,2]
[393332591,1762486252076,-607.0,0.0002738,2]
[393332592,1762486252085,-4060.01691369,0.0002739,2]
[393332593,1762486252094,-8020.4839602,0.0002739,2]
[393332594,1762486252102,-150.0,0.00027397,6]
[393332595,1762486252112,-186.45372762,0.00027397,2]
[393332596,1762486252122,-1428.76,0.00027397,2]
[393332597,1762486252130,-1130.08,0.00027397,2]
[393332598,1762486252140,-1500.0,0.00027397,16]
[393332599,1762486252150,-300.0,0.00027397,2]
[393332600,1762486252160,-33109.67,0.00027397,2]
[393332601,1762486252170,-181.42,0.00027397,10]
[393332602,1762486252181,-1513.83,0.000274,7]
[393332603,1762486252190,-2539.23,0.000274,2]
[393332604,1762486252199,-469.19,0.000274,7]
[393332605,1762486252208,-162.37318192,0.00027438,2]
[393332606,1762486252217,-152.0,0.00027468,10]
[393332607,1762486252227,-198.59020601,0.000275,2]
[393332608,1762486252236,-542.49785778,0.000275,2]
[393332609,1762486252245,-1029.94,0.000275,30]
[393332610,1762486252254,-250.0,0.00027521,5]
[393332611,1762486252264,-400.0,0.00027526,30]
[393332612,1762486252274,-400.0,0.00027526,30]
[393332613,1762486252284,-302.43093678,0.00027526,30]
[393332614,1762486252293,-150.0,0.00027534,6]
[393332615,1762486252302,-39494.4591826,0.00027567,2]
[393332616,1762486252311,-820.0,0.0002766,2]
[393332617,1762486252321,-1596.0,0.0002766,2]
[393332618,1762486252330,-1273.0,0.0002766,2]
[393332619,1762486252339,-812.0,0.0002766,2]
[393332620,1762486252349,-1188.0,0.0002766,2]
[393332621,1762486252360,-905.0,0.0002766,2]
[393332622,1762486252369,-150.0,0.00027671,6]
[393332623,1762486252378,-1779.97,0.00027671,30]
[393332624,1762486252388,-2000.0,0.000277,2]
[393332625,1762486252396,-729.26735117,0.00027738,2]
[393332626,1762486252406,-150.0,0.00027808,6]
[393332627,1762486252415,-8812.4050023,0.00027832,2]
[393332628,1762486252425,-549.24,0.00027836,2]
[393332629,1762486252434,-1098.13,0.00027837,2]
[393332630,1762486252443,-549.16,0.00027838,2]
[393332631,1762486252453,-1098.32,0.00027838,2]
[393332632,1762486252462,-549.16,0.00027838,2]
[393332633,1762486252472,-151.72,0.00027838,2]
[393332634,1762486252481,-1205.44,0.00027838,2]
[393332635,1762486252491,-1205.44,0.00027838,2]
[393332636,1762486252501,-1227.19,0.00027838,2]
[393332637,1762486252511,-356.47,0.00027838,2]
[393332638,1762486252520,-353.82,0.00027838,2]
[393332639,1762486252530,-1205.44,0.00027838,2]
[393332640,1762486252539,-2410.88,0.00027838,2]
[393332641,1762486252549,-1205.44,0.00027838,2]
[393332642,1762486252559,-169.04,0.00027838,2]
[393332643,1762486252568,-1205.44,0.00027838,2]
[393332644,1762486252578,-169.04,0.00027838,2]
[393332645,1762486252587,-1205.44,0.00027838,2]
[393332646,1762486252597,-1205.44,0.00027838,2]
[393332647,1762486252608,-338.08,0.00027838,2]
[393332648,1762486252617,-169.04,0.00027838,2]
[393332649,1762486252627,-1205.44,0.00027838,2]
[393332650,1762486252636,-169.04,0.00027838,2]
[393332651,1762486252645,-1205.44,0.00027838,2]
[393332652,1762486252654,-338.01,0.00027838,2]
[393332653,1762486252663,-1205.44,0.00027838,2]
[393332654,1762486252672,-1205.44,0.00027838,2]
[393332655,1762486252682,-1205.44,0.00027838,2]
[393332656,1762486252692,-1205.44,0.00027838,2]
[393332657,1762486252701,-1205.44,0.00027838,2]
[393332658,1762486252710,-1205.44,0.00027838,2]
[393332659,1762486252719,-1205.44,0.00027838,2]
[393332660,1762486252733,-2408.22,0.00027838,2]
[393332661,1762486252742,-152.0,0.00027894,11]
[393332662,1762486252751,-300.0,0.000279,10]
[393332663,1762486252761,-498.90777968,0.000279,2]
[393332664,1762486252771,-150.0,0.00027945,6]
[393332665,1762486252781,-192.4,0.0002795,7]
[393332666,1762486252790,-106710.60225694,0.00028,2]
[393332667,1762486252802,-50215.45073496,0.00028,2]
[393332668,1762486252811,-160.0,0.00028,2]
[393332669,1762486252821,-283.09,0.00028,2]
[393332670,1762486252830,-70427.84569204,0.00028,2]
[393332671,1762486252839,-142893.33774864,0.00028,2]
[393332672,1762486252848,-151.0,0.00028,31]
[393332673,1762486252859,-151.0,0.00028,31]
[393332674,1762486252869,-151.0,0.00028,31]
[393332675,1762486252878,-151.0,0.00028,31]
[393332676,1762486252887,-290.137231,0.00028,31]
[393332677,1762486252896,-151.0,0.00028,30]
[393332678,1762486252905,-151.0,0.00028,31]
[393332679,1762486252915,-151.0,0.00028,31]
[393332680,1762486252924,-151.0,0.00028,31]
[393332681,1762486252933,-161.013308,0.00028,31]
[393332682,1762486252942,-161.013308,0.00028,31]
[393332683,1762486252952,-161.013308,0.00028,31]
[393332684,1762486252961,-161.013308,0.00028,31]
[393332685,1762486252970,-184.723214,0.00028,31]
[393332686,1762486252980,-152.690055,0.00028,10]
[393332687,1762486252990,-151.0,0.00028,15]
[393332688,1762486253000,-151.0,0.00028,15]
[393332689,1762486253010,-151.0,0.00028,31]
[393332690,1762486253019,-164.771008,0.00028,31]
[393332691,1762486253029,-163.557123,0.00028,31]
[393332692,1762486253038,-236.806063,0.00028,31]
[393332693,1762486253048,-166.673318,0.00028,31]
[393332694,1762486253057,-159.507872,0.00028,31]
[393332695,1762486253067,-151.0,0.00028,31]
[393332696,1762486253077,-195.190223,0.00028,31]
[393332697,1762486253088,-151.0,0.00028,31]
[393332698,1762486253097,-164.219662,0.00028,31]
[393332699,1762486253107,-151.0,0.00028,31]
[393332700,1762486253117,-151.0,0.00028,31]
[393332701,1762486253127,-151.0,0.00028,31]
[393332702,1762486253137,-208.051066,0.00028,31]
[393332703,1762486253147,-151.0,0.00028,31]
[393332704,1762486253156,-151.0,0.00028,31]
[393332705,1762486253167,-151.0,0.00028,28]
[393332706,1762486253176,-151.0,0.00028,31]
[393332707,1762486253187,-1630.140865,0.00028,31]
[393332708,1762486253197,-1630.140865,0.00028,31]
[393332709,1762486253207,-271.678733,0.00028,31]
[393332710,1762486253217,-151.0,0.00028,31]
[393332711,1762486253227,-1630.140865,0.00028,31]
[393332712,1762486253238,-271.678733,0.00028,31]
[393332713,1762486253248,-1630.140865,0.00028,31]
[393332714,1762486253259,-271.678733,0.00028,31]
[393332715,1762486253269,-151.0,0.00028,31]
[393332716,1762486253279,-151.0,0.00028,31]
[393332717,1762486253289,-271.678733,0.00028,31]
[393332718,1762486253299,-158.617892,0.00028,31]
[393332719,1762486253309,-151.0,0.00028,31]
[393332720,1762486253320,-151.0,0.00028,31]
[393332721,1762486253330,-151.0,0.00028,31]
[393332722,1762486253340,-465311.30131885,0.00028,2]
[393332723,1762486253349,-181.09714739,0.00028068,5]
[393332724,1762486253358,-153.15488021,0.00028082,6]
[393332725,1762486253368,-152.22,0.00028118,2]
[393332726,1762486253377,-8812.4050023,0.00028258,2]
[393332727,1762486253386,-152.0,0.0002832,12]
[393332728,1762486253396,-400.0,0.00028395,30]
[393332729,1762486253405,-400.0,0.00028395,30]
[393332730,1762486253414,-400.0,0.00028395,30]
[393332731,1762486253423,-400.0,0.00028395,30]
[393332732,1762486253432,-400.0,0.00028395,30]
[393332733,1762486253441,-400.0,0.00028395,30]
[393332734,1762486253451,-400.0,0.00028395,30]
[393332735,1762486253460,-400.0,0.00028395,30]
[393332736,1762486253469,-400.0,0.00028395,30]
[393332737,1762486253479,-400.0,0.00028395,30]
[393332738,1762486253489,-400.0,0.00028395,30]
[393332739,1762486253498,-400.0,0.00028395,30]
[393332740,1762486253508,-344.67770501,0.00028395,30]
[393332741,1762486253518,-1966.3133394,0.0002853,2]
[393332742,1762486253528,-152.0,0.00028746,13]
[393332743,1762486253537,-13129.99918524,0.0002875,2]
[393332744,1762486253546,-165.327163,0.0002875,31]
[393332745,1762486253556,-151.0,0.0002875,31]
[393332746,1762486253565,-151.0,0.0002875,31]
[393332747,1762486253575,-159.453846,0.0002875,30]
[393332748,1762486253584,-151.0,0.0002875,31]
[393332749,1762486253594,-151.0,0.0002875,31]
[393332750,1762486253604,-286.243306,0.0002875,31]
[393332751,1762486253614,-161.013308,0.0002875,31]
[393332752,1762486253623,-161.013308,0.0002875,31]
[393332753,1762486253633,-161.013308,0.0002875,31]
[393332754,1762486253642,-161.013308,0.0002875,31]
[393332755,1762486253652,-16581.7065668,0.00028888,2]
[393332756,1762486253661,-1513.83,0.000289,7]
[393332757,1762486253671,-469.19,0.000289,7]
[393332758,1762486253680,-151.0,0.000289,15]
[393332759,1762486253690,-151.0,0.000289,15]
[393332760,1762486253699,-151.0,0.000289,31]
[393332761,1762486253709,-7031.3088555,0.0002899,8]
[393332762,1762486253718,-804.55183524,0.00029,2]
[393332763,1762486253732,-303.92393691,0.00029,10]
[393332764,1762486253741,-779914.64374907,0.00029,2]
[393332765,1762486253751,-477.99034883,0.00029,30]
[393332766,1762486253759,-151.0,0.00029,31]
[393332767,1762486253769,-151.0,0.00029,31]
[393332768,1762486253780,-151.0,0.00029,31]
[393332769,1762486253790,-151.0,0.00029,31]
[393332770,1762486253801,-161.013308,0.00029,31]
[393332771,1762486253811,-161.013308,0.00029,31]
[393332772,1762486253821,-161.013308,0.00029,31]
[393332773,1762486253831,-161.013303,0.00029,31]
[393332774,1762486253841,-151.0,0.00029,15]
[393332775,1762486253850,-151.0,0.00029,15]
[393332776,1762486253860,-151.000013,0.00029,31]
[393332777,1762486253870,-151.0,0.00029,31]
[393332778,1762486253880,-169.839575,0.00029,31]
[393332779,1762486253889,-269.713209,0.00029,31]
[393332780,1762486253899,-151.0,0.00029,31]
[393332781,1762486253908,-151.0,0.00029,31]
[393332782,1762486253918,-151.0,0.00029,28]
[393332783,1762486253927,-184.424729,0.00029,31]
[393332784,1762486253936,-1630.140865,0.00029,31]
[393332785,1762486253947,-1630.140865,0.00029,31]
[393332786,1762486253956,-271.678733,0.00029,31]
[393332787,1762486253966,-151.0,0.00029,31]
[393332788,1762486253975,-1630.140865,0.00029,31]
[393332789,1762486253984,-271.678733,0.00029,31]
[393332790,1762486253993,-1630.140865,0.00029,31]
[393332791,1762486254002,-271.678733,0.00029,31]
[393332792,1762486254011,-151.0,0.00029,31]
[393332793,1762486254020,-151.0,0.00029,31]
[393332794,1762486254030,-271.678733,0.00029,31]
[393332795,1762486254040,-151.0,0.00029,31]
[393332796,1762486254050,-151.0,0.00029,31]
[393332797,1762486254060,-151.0,0.00029,31]
[393332798,1762486254070,-550.0,0.00029,2]
[393332799,1762486254079,-152.0,0.00029172,14]
[393332800,1762486254090,-12649.0,0.00029229,2]
[393332801,1762486254099,-152.22,0.00029396,2]
[393332802,1762486254110,-2539.23,0.000294,2]
[393332803,1762486254119,-1273.23,0.00029528,2]
[393332804,1762486254129,-152.0,0.00029598,15]
[393332805,1762486254139,-3304.58611747,0.00029699,2]
[393332806,1762486254148,-192.4,0.00029739,30]
[393332807,1762486254158,-77847.01531733,0.000299,2]
[393332808,1762486254167,-16175.11761956,0.000299,30]
[393332809,1762486254176,-234.08732347,0.0002999,2]
[393332810,1762486254186,-3675.0,0.0003,3]
[393332811,1762486254196,-500.0,0.0003,9]
[393332812,1762486254206,-11672.59095275,0.0003,7]
[393332813,1762486254216,-150.0,0.0003,2]
[393332814,1762486254225,-37682.32766412,0.0003,5]
[393332815,1762486254235,-19607.88434537,0.0003,2]
[393332816,1762486254244,-2000.0,0.0003,14]
[393332817,1762486254254,-1000.0,0.0003,14]
[393332818,1762486254264,-1000.0,0.0003,14]
[393332819,1762486254274,-1000.0,0.0003,14]
[393332820,1762486254284,-1000.0,0.0003,14]
[393332821,1762486254294,-1000.0,0.0003,14]
[393332822,1762486254304,-400.0,0.0003,20]
[393332823,1762486254313,-160.57,0.0003,5]
[393332824,1762486254323,-3312.04207846,0.0003,2]
[393332825,1762486254333,-160.93,0.0003,3]
[393332826,1762486254343,-162.7,0.0003,8]
[393332827,1762486254353,-160.0,0.0003,14]
[393332828,1762486254364,-1792.81225133,0.0003,2]
[393332829,1762486254373,-606.21235791,0.0003,2]
[393332830,1762486254383,-50857.60419659,0.0003,2]
[393332831,1762486254392,-160.81215985,0.0003,2]
[393332832,1762486254402,-156.8,0.0003,2]
[393332833,1762486254411,-11064.00340411,0.0003,2]
[393332834,1762486254421,-200.0,0.0003,10]
[393332835,1762486254430,-171.48,0.0003,2]
[393332836,1762486254440,-16500.45698721,0.0003,3]
[393332837,1762486254449,-163.0,0.0003,5]
[393332838,1762486254459,-184.12,0.0003,22]
[393332839,1762486254468,-152.0,0.00030024,16]
[393332840,1762486254477,-303.93113504,0.0003013,5]
[393332841,1762486254486,-162.50433777,0.0003013,20]
[393332842,1762486254495,-625.3536787,0.0003013,2]
[393332843,1762486254504,-199.00164283,0.0003013,2]
[393332844,1762486254513,-1207.77303113,0.0003013,2]
[393332845,1762486254523,-7627.63492285,0.0003013,2]
[393332846,1762486254533,-1012.11358183,0.0003013,7]
[393332847,1762486254545,-182.01477032,0.0003013,30]
[393332848,1762486254555,-999.0,0.00030136,2]
[393332849,1762486254564,-1130.08,0.00030137,2]
[393332850,1762486254573,-165.78,0.00030137,15]
[393332851,1762486254584,-1609.0,0.00030137,120]
[393332852,1762486254593,-896.97037626,0.00030137,14]
[393332853,1762486254603,-1268.58,0.00030163,2]
[393332854,1762486254613,-1513.83,0.000302,7]
[393332855,1762486254622,-8393.17784071,0.00030269,2]
[393332856,1762486254631,-5000.0,0.00030269,2]
[393332857,1762486254641,-469.19,0.000303,30]
[393332858,1762486254650,-23665.97,0.000303,7]
[393332859,1762486254660,-3424.0,0.0003038,2]
[393332860,1762486254669,-574.0,0.0003038,2]
[393332861,1762486254679,-2142.0,0.0003038,2]
[393332862,1762486254688,-152.0,0.0003045,17]
[393332863,1762486254697,-820.0,0.0003066,2]
[393332864,1762486254706,-1596.0,0.0003066,2]
[393332865,1762486254716,-1273.0,0.0003066,2]
[393332866,1762486254727,-812.0,0.0003066,2]
[393332867,1762486254738,-1188.0,0.0003066,2]
[393332868,1762486254747,-905.0,0.0003066,2]
[393332869,1762486254756,-152.22,0.00030674,2]
[393332870,1762486254766,-661.92,0.00030685,30]
[393332871,1762486254777,-211.0,0.0003084,30]
[393332872,1762486254787,-152.0,0.00030876,18]
[393332873,1762486254796,-68678.50413966,0.0003095,2]
[393332874,1762486254806,-150.0,0.00031,2]
[393332875,1762486254815,-79741.22513253,0.00031,2]
[393332876,1762486254824,-1513.83,0.00031,7]
[393332877,1762486254834,-2539.23,0.00031,2]
[393332878,1762486254843,-600.0,0.00031,120]
[393332879,1762486254852,-151.0,0.00031,15]
[393332880,1762486254862,-300.658385,0.00031,15]
[393332881,1762486254871,-151.0,0.00031,31]
[393332882,1762486254880,-285.152704,0.00031,31]
[393332883,1762486254890,-228.388686,0.00031,28]
[393332884,1762486254899,-1630.140865,0.00031,31]
[393332885,1762486254909,-1630.140865,0.00031,31]
[393332886,1762486254919,-271.678733,0.00031,31]
[393332887,1762486254928,-151.0,0.00031,31]
[393332888,1762486254938,-1630.140865,0.00031,31]
[393332889,1762486254947,-271.678733,0.00031,31]
[393332890,1762486254956,-1630.140859,0.00031,31]
[393332891,1762486254966,-271.678733,0.00031,31]
[393332892,1762486254975,-151.0,0.00031,31]
[393332893,1762486254984,-151.0,0.00031,31]
[393332894,1762486254993,-271.678739,0.00031,31]
[393332895,1762486255002,-151.0,0.00031,31]
[393332896,1762486255011,-151.0,0.00031,31]
[393332897,1762486255132,-151.0,0.00031,31]
[393332898,1762486255167,-600.0,0.00031,2]
[393332899,1762486255177,-11986.146755,0.000311,2]
[393332900,1762486255187,-37645.47,0.000312,2]
[393332901,1762486255196,-152.0,0.00031302,19]
[393332902,1762486255206,-2000.0,0.000314,2]
[393332903,1762486255215,-749.092,0.0003143,4]
[393332904,1762486255225,-253.64814887,0.000315,2]
[393332905,1762486255235,-194.70246462,0.000315,2]
[393332906,1762486255244,-150.0,0.000315,2]
[393332907,1762486255253,-160.82227907,0.000315,120]
[393332908,1762486255263,-192.4,0.00031528,30]
[393332909,1762486255273,-469.19,0.000316,30]
[393332910,1762486255282,-1000.0,0.00031652,2]
[393332911,1762486255292,-1000.0,0.00031667,2]
[393332912,1762486255301,-19708.03669614,0.000317,10]
[393332913,1762486255310,-23665.97,0.000317,7]
[393332914,1762486255320,-152.0,0.00031728,20]
[393332915,1762486255329,-23665.97,0.000318,7]
[393332916,1762486255338,-782.15292764,0.00031999,2]
[393332917,1762486255347,-178.90233162,0.00032,2]
[393332918,1762486255356,-150.0,0.00032,2]
[393332919,1762486255365,-1513.83,0.00032,7]
[393332920,1762486255375,-400.0,0.00032,120]
[393332921,1762486255384,-1011.33361857,0.00032,7]
[393332922,1762486255394,-17709.0,0.00032152,3]
[393332923,1762486255410,-152.0,0.00032154,21]
[393332924,1762486255421,-881.20679444,0.000323,2]
[393332925,1762486255431,-2539.23,0.000323,2]
[393332926,1762486255440,-152.0,0.0003258,22]
[393332927,1762486255450,-1011.42185199,0.000326,7]
[393332928,1762486255459,-4761.28622098,0.000328,2]
[393332929,1762486255468,-211.0,0.0003286,30]
[393332930,1762486255478,-1003.46165806,0.00032876,2]
[393332931,1762486255488,-1003.29653754,0.00032876,2]
[393332932,1762486255497,-1000.0,0.00032876,2]
[393332933,1762486255507,-1000.0,0.00032876,2]
[393332934,1762486255515,-1000.0,0.00032876,2]
[393332935,1762486255525,-1000.0,0.00032876,2]
[393332936,1762486255535,-1000.0,0.00032876,2]
[393332937,1762486255546,-1000.0,0.00032876,2]
[393332938,1762486255556,-1000.0,0.00032876,2]
[393332939,1762486255566,-1000.0,0.00032876,2]
[393332940,1762486255575,-812.63887914,0.00032876,2]
[393332941,1762486255584,-1000.0,0.00032876,2]
[393332942,1762486255594,-1000.0,0.00032876,2]
[393332943,1762486255603,-1000.0,0.00032876,2]
[393332944,1762486255612,-1000.0,0.00032876,2]
[393332945,1762486255627,-1000.0,0.00032876,2]
[393332946,1762486255638,-1000.0,0.00032876,2]
[393332947,1762486255647,-1000.0,0.00032876,2]
[393332948,1762486255657,-1000.0,0.00032876,2]
[393332949,1762486255666,-1000.0,0.00032876,2]
[393332950,1762486255675,-1000.0,0.00032876,2]
[393332951,1762486255684,-1000.0,0.00032876,2]
[393332952,1762486255693,-1056.36871476,0.00032876,2]
[393332953,1762486255702,-500.0,0.00032876,2]
[393332954,1762486255711,-500.0,0.00032876,2]
[393332955,1762486255720,-500.0,0.00032876,2]
[393332956,1762486255736,-500.0,0.00032876,2]
[393332957,1762486255745,-500.0,0.00032876,2]
[393332958,1762486255754,-500.0,0.00032876,2]
[393332959,1762486255764,-386.09499652,0.00032876,2]
[393332960,1762486255774,-1000.0,0.00032876,2]
[393332961,1762486255783,-1000.0,0.00032876,2]
[393332962,1762486255792,-1000.0,0.00032876,2]
[393332963,1762486255804,-191.42356266,0.00032876,2]
[393332964,1762486255813,-1000.0,0.00032876,2]
[393332965,1762486255822,-277.11302621,0.00032876,15]
[393332966,1762486255831,-500.0,0.00032876,120]
[393332967,1762486255840,-578.81216164,0.00032876,120]
[393332968,1762486255850,-500.0,0.00032876,2]
[393332969,1762486255859,-500.0,0.00032876,2]
[393332970,1762486255868,-500.0,0.00032876,2]
[393332971,1762486255878,-500.0,0.00032876,2]
[393332972,1762486255887,-500.0,0.00032876,2]
[393332973,1762486255896,-500.0,0.00032876,2]
[393332974,1762486255906,-500.0,0.00032876,2]
[393332975,1762486255915,-500.0,0.00032876,2]
[393332976,1762486255925,-500.0,0.00032876,2]
[393332977,1762486255935,-500.0,0.00032876,2]
[393332978,1762486255944,-500.0,0.00032876,2]
[393332979,1762486255953,-500.0,0.00032876,2]
[393332980,1762486255962,-307.75725875,0.00032876,2]
[393332981,1762486255971,-1289.6,0.00032876,2]
[393332982,1762486255980,-1289.6,0.00032876,2]
[393332983,1762486255990,-1289.6,0.00032876,2]
[393332984,1762486255999,-1289.6,0.00032876,2]
[393332985,1762486256009,-1289.6,0.00032876,2]
[393332986,1762486256019,-1289.6,0.00032876,2]
[393332987,1762486256029,-1289.6,0.00032876,2]
[393332988,1762486256038,-1289.6,0.00032876,2]
[393332989,1762486256047,-1289.6,0.00032876,2]
[393332990,1762486256056,-1289.6,0.00032876,2]
[393332991,1762486256065,-1289.6,0.00032876,2]
[393332992,1762486256075,-1289.6,0.00032876,2]
[393332993,1762486256084,-1289.6,0.00032876,2]
[393332994,1762486256093,-1289.6,0.00032876,2]
[393332995,1762486256102,-1289.6,0.00032876,2]
[393332996,1762486256112,-1289.6,0.00032876,2]
[393332997,1762486256121,-1289.6,0.00032876,2]
[393332998,1762486256130,-1289.6,0.00032876,2]
[393332999,1762486256140,-1289.6,0.00032876,2]
[393333000,1762486256149,-1289.6,0.00032876,2]
[393333001,1762486256159,-1289.6,0.00032876,2]
[393333002,1762486256168,-1289.6,0.00032876,2]
[393333003,1762486256178,-1289.6,0.00032876,2]
[393333004,1762486256187,-1289.81759229,0.00032876,2]
[393333005,1762486256196,-198.27426632,0.00032876,10]
[393333006,1762486256206,-2004.71,0.00032876,2]
[393333007,1762486256215,-2004.71,0.00032876,2]
[393333008,1762486256224,-2004.71,0.00032876,2]
[393333009,1762486256234,-2004.71,0.00032876,2]
[393333010,1762486256243,-2004.71,0.00032876,2]
[393333011,1762486256253,-2004.71,0.00032876,2]
[393333012,1762486256262,-2004.71,0.00032876,2]
[393333013,1762486256271,-2004.71,0.00032876,2]
[393333014,1762486256281,-2004.71,0.00032876,2]
[393333015,1762486256290,-2004.71,0.00032876,2]
[393333016,1762486256300,-2004.71,0.00032876,2]
[393333017,1762486256309,-2004.71,0.00032876,2]
[393333018,1762486256318,-2004.71,0.00032876,2]
[393333019,1762486256328,-2004.71,0.00032876,2]
[393333020,1762486256338,-2004.71,0.00032876,2]
[393333021,1762486256347,-2004.71,0.00032876,2]
[393333022,1762486256356,-2004.71,0.00032876,2]
[393333023,1762486256366,-2004.71,0.00032876,2]
[393333024,1762486256375,-2004.71,0.00032876,2]
[393333025,1762486256384,-2004.71,0.00032876,2]
[393333026,1762486256393,-2004.71,0.00032876,2]
[393333027,1762486256402,-2004.71,0.00032876,2]
[393333028,1762486256412,-2004.71,0.00032876,2]
[393333029,1762486256421,-2004.76249526,0.00032876,2]
[393333030,1762486256431,-500.0,0.00032876,2]
[393333031,1762486256440,-500.0,0.00032876,2]
[393333032,1762486256449,-500.0,0.00032876,2]
[393333033,1762486256459,-500.0,0.00032876,2]
[393333034,1762486256468,-500.0,0.00032876,2]
[393333035,1762486256477,-500.0,0.00032876,2]
[393333036,1762486256487,-500.0,0.00032876,2]
[393333037,1762486256498,-500.0,0.00032876,2]
[393333038,1762486256507,-353.37004135,0.00032876,2]
[393333039,1762486256516,-500.0,0.00032876,2]
[393333040,1762486256526,-501.55120828,0.00032876,2]
[393333041,1762486256536,-300.0,0.00032876,2]
[393333042,1762486256546,-300.0,0.00032876,2]
[393333043,1762486256556,-300.0,0.00032876,2]
[393333044,1762486256565,-300.0,0.00032876,2]
[393333045,1762486256574,-300.0,0.00032876,2]
[393333046,1762486256583,-300.0,0.00032876,2]
[393333047,1762486256593,-300.0,0.00032876,2]
[393333048,1762486256609,-300.0,0.00032876,2]
[393333049,1762486256622,-300.0,0.00032876,2]
[393333050,1762486256633,-300.0,0.00032876,2]
[393333051,1762486256644,-300.0,0.00032876,2]
[393333052,1762486256653,-300.0,0.00032876,2]
[393333053,1762486256663,-300.0,0.00032876,2]
[393333054,1762486256674,-300.0,0.00032876,2]
[393333055,1762486256685,-300.0,0.00032876,2]
[393333056,1762486256695,-300.0,0.00032876,2]
[393333057,1762486256704,-336.57383417,0.00032876,2]
[393333058,1762486256714,-999.0,0.00032876,120]
[393333059,1762486256726,-150.0,0.00032876,2]
[393333060,1762486256736,-150.0,0.00032876,2]
[393333061,1762486256746,-150.0,0.00032876,2]
[393333062,1762486256755,-150.0,0.00032876,2]
[393333063,1762486256764,-150.0,0.00032876,2]
[393333064,1762486256774,-150.0,0.00032876,2]
[393333065,1762486256784,-219.40062563,0.00032876,2]
[393333066,1762486256794,-500.0,0.00032876,2]
[393333067,1762486256804,-500.0,0.00032876,2]
[393333068,1762486256814,-500.0,0.00032876,2]
[393333069,1762486256823,-500.0,0.00032876,2]
[393333070,1762486256833,-500.0,0.00032876,2]
[393333071,1762486256842,-500.0,0.00032876,2]
[393333072,1762486256851,-500.0,0.00032876,2]
[393333073,1762486256862,-500.0,0.00032876,2]
[393333074,1762486256871,-429.04485492,0.00032876,2]
[393333075,1762486256880,-500.0,0.00032876,2]